bitfinex/quotes_BTCUSD_20250829
["timestamp","ask_amount","ask_price","bid_price","bid_amount"]
[1756451985052,0.25306227,110630.0,110610.0,0.18307473]
[1756451985260,0.00293,110630.0,110620.0,0.18305911]
[1756451985406,0.18991766,110640.0,110620.0,0.18079913]
[1756451985407,0.19284766,110640.0,110620.0,0.18079913]
[1756451985609,0.45454975,110640.0,110620.0,0.17979913]
[1756451985934,0.45454975,110640.0,110620.0,0.37251913]
[1756451985935,0.18369644,110640.0,110620.0,0.37251913]
[1756451986092,0.18276278,110630.0,110610.0,0.18985531]
[1756451986297,0.18079913,110620.0,110610.0,0.19499826]
[1756451986606,0.18079913,110620.0,110610.0,0.37859842]
[1756451986792,0.18570913,110620.0,110610.0,0.00014295]
[1756451986992,0.2551841,110620.0,110610.0,0.00114295]
[1756451987534,0.2551841,110620.0,110610.0,0.00014295]
[1756451987817,0.19080476,110640.0,110620.0,0.18079913]
[1756451987818,0.19625,110640.0,110620.0,0.18079913]
[1756451988018,0.53625,110640.0,110630.0,0.18078278]
[1756451988220,0.19332,110640.0,110630.0,0.18078278]
[1756451988366,0.001,110640.0,110630.0,0.18078278]
[1756451988569,0.18276654,110640.0,110620.0,0.18079913]
[1756451988821,0.18078278,110630.0,110620.0,0.18079913]
[1756451989195,0.18400644,110640.0,110620.0,0.18079913]
[1756451989401,0.18078278,110630.0,110620.0,0.18079913]
[1756451989839,0.18613278,110630.0,110610.0,0.54169622]
[1756451990181,0.18613278,110630.0,110610.0,0.54069622]
[1756451990404,0.18613278,110630.0,110620.0,0.003]
[1756451990607,0.18613278,110630.0,110620.0,0.005]
[1756451990825,0.18613278,110630.0,110620.0,0.002]
[1756451991037,0.18613278,110630.0,110620.0,0.18279913]
[1756451991456,0.05602293,110680.0,110670.0,0.18071744]
[1756451991607,0.01415131,110690.0,110670.0,0.27108376]
[1756451991807,0.01415131,110690.0,110680.0,0.18070112]
[1756451992068,0.01739131,110690.0,110670.0,0.37394744]
[1756451992251,0.01739131,110690.0,110680.0,0.18295988]
[1756451992569,0.00324,110690.0,110680.0,0.18070112]
[1756451992815,0.00549348,110690.0,110680.0,0.18070112]
[1756451993023,0.00014348,110690.0,110680.0,0.18070112]
[1756451993306,0.00014348,110690.0,110680.0,0.37361112]
[1756451993653,0.00014348,110690.0,110680.0,0.18277112]
[1756451993854,0.18082827,110690.0,110680.0,0.19076]
[1756451994164,0.18082827,110690.0,110680.0,0.19176]
[1756451994364,0.00014348,110690.0,110680.0,0.37446112]
[1756451994594,0.00014348,110690.0,110680.0,0.37346112]
[1756451994720,0.00014348,110690.0,110680.0,1.84589219]
[1756451995130,0.00014348,110690.0,110680.0,1.84389219]
[1756451995342,0.00014348,110690.0,110680.0,1.65513219]
[1756451995605,0.00014348,110690.0,110680.0,1.84653219]
[1756451996000,0.00014348,110690.0,110680.0,0.46426744]
[1756451996449,0.18082827,110690.0,110680.0,0.002]
[1756451996632,0.18617827,110690.0,110680.0,0.003]
[1756451997093,0.27373338,110690.0,110680.0,0.002]
[1756451997315,0.18071744,110670.0,110660.0,0.26044]
[1756451997692,0.18395476,110680.0,110660.0,0.44324321]
[1756451997903,0.00324,110680.0,110670.0,0.1829764]
[1756451998091,0.18394112,110680.0,110670.0,0.18071744]
[1756451998252,0.18070112,110680.0,110660.0,0.51180403]
[1756451998620,0.18070112,110680.0,110670.0,0.00225896]
[1756451998744,0.20189057,110690.0,110670.0,0.19277896]
[1756451998948,0.18070112,110680.0,110660.0,0.32092403]
[1756451999163,0.18070112,110680.0,110670.0,0.19036]
[1756451999364,0.18071744,110670.0,110660.0,0.14019082]
[1756451999624,0.18606744,110670.0,110660.0,0.07063082]
[1756452000521,0.18606744,110670.0,110660.0,0.07263082]
[1756452000754,0.18606744,110670.0,110660.0,0.07563082]
[1756452000901,0.18606744,110670.0,110660.0,0.07363082]
[1756452001071,0.18282744,110670.0,110660.0,0.25436459]
[1756452001273,0.00324,110680.0,110670.0,0.18071744]
[1756452001506,0.02074,110700.0,110680.0,0.18070112]
[1756452001775,0.18071744,110670.0,110660.0,0.001]
[1756452001979,5.73864626,110670.0,110660.0,0.003]
[1756452002136,0.19699,110670.0,110660.0,0.003]
[1756452002425,0.18394112,110680.0,110660.0,0.18580337]
[1756452002626,0.78777126,110690.0,110670.0,0.18071741]
[1756452002627,0.18971902,110690.0,110670.0,0.18071741]
[1756452002855,0.18971902,110690.0,110670.0,0.37231741]
[1756452003065,0.18971902,110690.0,110670.0,0.18071741]
[1756452003236,0.18070112,110680.0,110670.0,0.18071741]
[1756452003444,0.18070112,110680.0,110670.0,0.19391]
[1756452003841,0.18070112,110680.0,110660.0,0.18073337]
[1756452004098,0.18071744,110670.0,110650.0,0.18978729]
[1756452004325,0.18071744,110670.0,110660.0,0.19172]
[1756452004535,0.18071744,110670.0,110650.0,0.18978729]
[1756452004736,0.18071744,110670.0,110660.0,0.19196]
[1756452004937,0.18071744,110670.0,110650.0,0.18978729]
[1756452005131,0.18071744,110670.0,110660.0,0.19192]
[1756452005715,0.18071744,110670.0,110660.0,0.00207]
[1756452005919,0.18071744,110670.0,110660.0,0.19403]
[1756452006115,0.18071744,110670.0,110660.0,0.37476377]
[1756452006501,0.18071744,110670.0,110660.0,0.00207]
[1756452006703,0.18071744,110670.0,110660.0,0.37464377]
[1756452007104,0.19297617,110680.0,110660.0,0.37464377]
[1756452007305,0.18973617,110680.0,110660.0,0.37664377]
[1756452007672,0.18070112,110680.0,110670.0,0.18071744]
[1756452007832,0.18070112,110680.0,110670.0,0.19188]
[1756452008007,0.18071744,110670.0,110660.0,0.18373377]
[1756452008209,0.18071744,110670.0,110660.0,0.18380377]
[1756452008554,0.18071744,110670.0,110660.0,0.19575]
[1756452008748,0.18071744,110670.0,110660.0,0.37528377]
[1756452009078,0.18071744,110670.0,110660.0,0.18380377]
[1756452009309,0.18071744,110670.0,110660.0,0.37528377]
[1756452009522,0.18071744,110670.0,110660.0,0.001]
[1756452009690,0.18071744,110670.0,110660.0,0.1928]
[1756452009894,0.18071744,110670.0,110660.0,0.001]
[1756452010047,0.18071744,110670.0,110660.0,0.1928]
[1756452010247,0.18071744,110670.0,110660.0,0.37553377]
[1756452010863,0.18071744,110670.0,110660.0,0.37760377]
[1756452011311,0.18070112,110680.0,110660.0,0.37760377]
[1756452011518,0.18070112,110680.0,110660.0,0.37960377]
[1756452011720,0.18070112,110680.0,110660.0,0.38231377]
[1756452012282,0.18070112,110680.0,110670.0,0.1829764]
[1756452012487,0.18070112,110680.0,110670.0,0.00207]
[1756452012712,0.18070112,110680.0,110670.0,0.00432896]
[1756452013119,0.18070112,110680.0,110670.0,0.19556896]
[1756452013329,0.18070112,110680.0,110670.0,0.19319]
[1756452013908,0.18070112,110680.0,110670.0,0.00207]
[1756452014099,0.18071744,110670.0,110660.0,0.001]
[1756452014672,0.18282744,110670.0,110660.0,0.19176]
[1756452014879,0.18606744,110670.0,110660.0,0.001]
[1756452015207,0.18606744,110670.0,110660.0,0.19156]
[1756452015620,0.18606744,110670.0,110660.0,0.19356]
[1756452015826,0.18606744,110670.0,110660.0,0.003]
[1756452016269,0.25350012,110670.0,110660.0,0.003]
[1756452016637,0.25350012,110670.0,110660.0,0.005]
[1756452016638,0.25976686,110670.0,110660.0,0.005]
[1756452017076,0.25976681,110670.0,110660.0,0.005]
[1756452017476,0.27903276,110670.0,110660.0,0.005]
[1756452017675,0.27903276,110670.0,110660.0,0.003]
[1756452017895,0.61903276,110670.0,110660.0,0.003]
[1756452018106,0.61903276,110670.0,110660.0,0.004]
[1756452018321,0.61904039,110670.0,110660.0,0.002]
[1756452019320,0.52908646,110670.0,110660.0,0.18477377]
[1756452019496,0.18908646,110670.0,110660.0,0.18477377]
[1756452019845,0.18071744,110670.0,110660.0,0.00304]
[1756452020177,0.18909054,110670.0,110660.0,0.18377377]
[1756452020312,0.18909054,110670.0,110660.0,0.16627377]
[1756452020746,0.18909054,110670.0,110660.0,0.16960294]
[1756452020747,0.0083731,110670.0,110660.0,0.16960294]
[1756452020952,0.18388112,110680.0,110660.0,0.17160294]
[1756452021282,0.18907569,110680.0,110660.0,0.17160294]
[1756452021918,0.18907569,110680.0,110660.0,0.17134377]
[1756452022103,0.18907569,110680.0,110670.0,0.1888]
[1756452022654,0.18907569,110680.0,110670.0,0.18987]
[1756452023112,0.00837457,110680.0,110670.0,0.37058744]
[1756452023313,0.18907569,110680.0,110670.0,0.37058744]
[1756452023651,0.18071744,110670.0,110660.0,0.16727377]
[1756452023858,0.19108569,110680.0,110660.0,0.36996377]
[1756452023859,0.18388112,110680.0,110660.0,0.36996377]
[1756452024063,0.19226331,110680.0,110670.0,0.001]
[1756452024303,0.19427331,110680.0,110670.0,0.18916]
[1756452024512,0.18073377,110660.0,110650.0,0.001]
[1756452024761,0.1839113,110670.0,110650.0,0.45808643]
[1756452024979,0.1839113,110670.0,110660.0,0.18804]
[1756452025314,0.1839113,110670.0,110660.0,0.37077377]
[1756452025520,0.18973617,110680.0,110660.0,0.37184377]
[1756452025689,0.20130191,110680.0,110660.0,0.37184377]
[1756452025894,0.20130191,110680.0,110660.0,0.37198725]
[1756452026075,0.002,110670.0,110660.0,0.37198725]
[1756452026271,0.19330191,110680.0,110660.0,0.37198725]
[1756452026475,0.19330191,110680.0,110670.0,0.00225896]
[1756452026804,0.18627686,110680.0,110660.0,0.36891725]
[1756452027001,0.18109101,110680.0,110670.0,0.18071744]
[1756452027200,0.18427101,110680.0,110670.0,0.18071744]
[1756452027502,0.18628101,110680.0,110670.0,0.18071744]
[1756452027714,0.18628101,110680.0,110660.0,0.45721357]
[1756452028254,0.18628101,110680.0,110670.0,0.18712]
[1756452028784,0.18071744,110670.0,110660.0,0.18926348]
[1756452028959,0.19429733,110670.0,110660.0,0.18926348]
[1756452029159,0.19429733,110670.0,110660.0,0.18826348]
[1756452029555,0.19429733,110670.0,110660.0,0.18726348]
[1756452030104,0.19429733,110670.0,110660.0,0.18750348]
[1756452030303,0.21362286,110670.0,110660.0,0.18750348]
[1756452030504,0.2199143,110670.0,110660.0,0.18750348]
[1756452030705,0.2199143,110670.0,110660.0,0.00014348]
[1756452030911,0.2199143,110670.0,110660.0,0.00214348]
[1756452031881,0.2199143,110670.0,110660.0,0.00614348]
[1756452032095,0.2199143,110670.0,110660.0,0.00214348]
[1756452032219,0.4067543,110670.0,110660.0,0.00314348]
[1756452032419,0.39836441,110670.0,110660.0,0.00314348]
[1756452032669,0.86529421,110670.0,110660.0,0.00214348]
[1756452032876,5.94225596,110670.0,110660.0,0.00214348]
[1756452033100,5.91835031,110670.0,110660.0,0.00314348]
[1756452033241,5.94250043,110670.0,110660.0,0.00114348]
[1756452033831,5.91835031,110670.0,110660.0,0.00114348]
[1756452034187,5.94249106,110670.0,110660.0,0.00114348]
[1756452035368,5.91037378,110670.0,110660.0,0.00114348]
[1756452036249,5.94249106,110670.0,110660.0,0.00114348]
[1756452036420,5.91037378,110670.0,110660.0,0.00114348]
[1756452036838,5.94249106,110670.0,110660.0,0.00114348]
[1756452037239,5.94248178,110670.0,110660.0,0.00114348]
[1756452038060,5.94248178,110670.0,110660.0,0.00014348]
[1756452038263,5.94448178,110670.0,110660.0,0.00014348]
[1756452038465,5.9143645,110670.0,110660.0,0.00014348]
[1756452038795,5.66802738,110670.0,110660.0,0.00014348]
[1756452038997,5.85322738,110670.0,110660.0,0.00014348]
[1756452039794,5.85346738,110670.0,110660.0,0.00014348]
[1756452040373,5.66802738,110670.0,110660.0,0.00014348]
[1756452040570,5.9414037,110670.0,110660.0,0.00014348]
[1756452041239,5.73218295,110670.0,110660.0,0.00014348]
[1756452041404,5.91726295,110670.0,110660.0,0.00014348]
[1756452041751,5.73218295,110670.0,110660.0,0.00014348]
[1756452041988,5.91722295,110670.0,110660.0,0.00014348]
[1756452042547,5.82892663,110670.0,110660.0,0.00014348]
[1756452042914,5.82844663,110670.0,110660.0,0.00014348]
[1756452043171,0.82844663,110670.0,110660.0,0.00014348]
[1756452043328,0.8091211,110670.0,110660.0,0.00014348]
[1756452044156,0.8039311,110670.0,110660.0,0.00121348]
[1756452044557,0.8059411,110670.0,110660.0,0.00121348]
[1756452044910,0.8091211,110670.0,110660.0,0.00014348]
[1756452047512,0.80911408,110670.0,110660.0,0.00014348]
[1756452047928,0.80710408,110670.0,110660.0,0.00014348]
[1756452048105,0.8251588,110670.0,110660.0,0.00014348]
[1756452048517,0.80911408,110670.0,110660.0,0.00014348]
[1756452050248,0.80324408,110670.0,110660.0,0.00121348]
[1756452050680,0.80818408,110670.0,110660.0,0.00014348]
[1756452050869,0.80190894,110670.0,110660.0,0.00014348]
[1756452051076,0.80818396,110670.0,110660.0,0.00014348]
[1756452051681,0.89648028,110670.0,110660.0,0.00014348]
[1756452053336,0.89020526,110670.0,110660.0,0.00014348]
[1756452056050,0.80190894,110670.0,110660.0,0.00014348]
[1756452059225,0.79991894,110670.0,110660.0,0.00121348]
[1756452059615,0.80190894,110670.0,110660.0,0.00121348]
[1756452059861,0.80190894,110670.0,110660.0,0.00014348]
[1756452060435,0.80190894,110670.0,110660.0,0.00121348]
[1756452060694,0.79696894,110670.0,110660.0,0.00121348]
[1756452060894,0.18471744,110670.0,110660.0,0.00188348]
[1756452061091,0.18471744,110670.0,110660.0,0.00414265]
[1756452061297,0.19311028,110670.0,110660.0,0.00414265]
[1756452061499,0.18471744,110670.0,110660.0,0.00414265]
[1756452061857,0.18071744,110670.0,110660.0,0.00414265]
[1756452062112,0.18071744,110670.0,110660.0,0.00288348]
[1756452062505,0.18071744,110670.0,110660.0,0.00514265]
[1756452063664,0.35402112,110680.0,110660.0,0.27191357]
[1756452063876,0.18071744,110670.0,110660.0,0.0911798]
[1756452066322,0.18071744,110670.0,110660.0,0.0905098]
[1756452068356,0.18071744,110670.0,110660.0,0.00221348]
[1756452068836,0.18071744,110670.0,110660.0,0.00114348]
[1756452068837,0.18565744,110670.0,110660.0,0.00114348]
[1756452072386,0.36545744,110670.0,110660.0,0.00114348]
[1756452072798,0.38639626,110670.0,110660.0,0.00114348]
[1756452073463,0.79382894,110670.0,110660.0,0.00114348]
[1756452073818,0.84973868,110670.0,110660.0,0.00114348]
[1756452074543,0.84446944,110670.0,110660.0,0.00114348]
[1756452074749,0.52073377,110660.0,110650.0,0.001]
[1756452074959,5.60951358,110660.0,110650.0,0.001]
[1756452075163,5.7027499,110660.0,110650.0,0.001]
[1756452076354,5.7027499,110660.0,110650.0,0.002]
[1756452078901,5.7037499,110660.0,110650.0,0.002]
[1756452079310,5.72807945,110660.0,110650.0,0.001]
[1756452079696,5.72907945,110660.0,110650.0,0.001]
[1756452079873,5.72807945,110660.0,110650.0,0.001]
[1756452080073,5.72707945,110660.0,110650.0,0.001]
[1756452080277,5.75397104,110660.0,110650.0,0.001]
[1756452081336,5.75497104,110660.0,110650.0,0.001]
[1756452083928,0.52075011,110650.0,110640.0,0.001]
[1756452084144,5.85705581,110650.0,110640.0,0.001]
[1756452084346,0.85903581,110650.0,110640.0,0.001]
[1756452084504,0.86212581,110650.0,110640.0,0.001]
[1756452084697,0.88306463,110650.0,110640.0,0.001]
[1756452085316,0.88306463,110650.0,110640.0,0.002]
[1756452087943,0.65715998,110650.0,110640.0,0.002]
[1756452088149,0.74961377,110650.0,110640.0,0.002]
[1756452090992,0.75323877,110650.0,110640.0,0.002]
[1756452093740,0.56840877,110650.0,110640.0,0.00307]
[1756452093925,0.75315877,110650.0,110640.0,0.00307]
[1756452094129,0.74808877,110650.0,110640.0,0.00307]
[1756452094875,0.75117877,110650.0,110640.0,0.00307]
[1756452096946,0.75315877,110650.0,110640.0,0.002]
[1756452098690,0.84145509,110650.0,110640.0,0.002]
[1756452100629,0.75315877,110650.0,110640.0,0.002]
[1756452102244,0.57347877,110650.0,110640.0,0.002]
[1756452102456,0.75303877,110650.0,110640.0,0.00307]
[1756452103713,0.75303877,110650.0,110640.0,0.002]
[1756452104201,0.77239443,110650.0,110640.0,0.002]
[1756452105126,0.77339443,110650.0,110640.0,0.002]
[1756452105471,0.77239443,110650.0,110640.0,0.002]
[1756452107442,0.77160488,110650.0,110640.0,0.002]
[1756452109671,0.8599012,110650.0,110640.0,0.002]
[1756452110090,0.85966171,110650.0,110640.0,0.002]
[1756452111037,0.77120539,110650.0,110640.0,0.002]
[1756452111183,0.77220539,110650.0,110640.0,0.001]
[1756452112698,0.77320539,110650.0,110640.0,0.001]
[1756452113617,0.77316539,110650.0,110640.0,0.001]
[1756452115823,0.59393539,110650.0,110640.0,0.001]
[1756452115995,0.77321539,110650.0,110640.0,0.001]
[1756452116397,0.59393539,110650.0,110640.0,0.001]
[1756452116604,0.77321539,110650.0,110640.0,0.001]
[1756452120693,0.7729759,110650.0,110640.0,0.001]
[1756452121071,0.7729759,110650.0,110640.0,0.01797643]
[1756452121351,0.7729759,110650.0,110640.0,0.001]
[1756452122094,0.7677759,110650.0,110640.0,0.00207]
[1756452122591,0.56914024,110650.0,110640.0,0.00207]
[1756452122767,0.74830024,110650.0,110640.0,0.00274]
[1756452123190,0.74467524,110650.0,110640.0,0.00207]
[1756452128911,0.74678524,110650.0,110640.0,0.00207]
[1756452129121,0.74999524,110650.0,110640.0,0.00207]
[1756452129313,0.74467524,110650.0,110640.0,0.00207]
[1756452129911,0.74999524,110650.0,110640.0,0.001]
[1756452130148,0.83829156,110650.0,110640.0,0.001]
[1756452130356,0.74999524,110650.0,110640.0,0.001]
[1756452130984,0.75362024,110650.0,110640.0,0.001]
[1756452134638,5.8070157,110650.0,110640.0,1e-08]
[1756452134919,0.5417216,110630.0,110620.0,0.001]
[1756452135088,0.5417216,110630.0,110580.0,0.07063082]
[1756452135089,0.20178699,110590.0,110580.0,0.07063082]
[1756452135289,0.18089725,110560.0,110550.0,0.18314466]
[1756452135489,0.36501725,110560.0,110550.0,0.20967066]
[1756452135664,0.20185243,110550.0,110540.0,0.0002]
[1756452136217,0.2795097,110550.0,110540.0,0.0002]
[1756452136663,0.4583097,110550.0,110540.0,0.0002]
[1756452137206,0.4582697,110550.0,110540.0,0.0022]
[1756452137404,0.2795097,110550.0,110540.0,0.0002]
[1756452137643,0.4582697,110550.0,110540.0,0.0012]
[1756452137908,0.4582697,110550.0,110540.0,0.0032]
[1756452138079,0.52765015,110550.0,110540.0,0.0032]
[1756452138481,0.4582697,110550.0,110540.0,0.0032]
[1756452138915,0.4582697,110550.0,110540.0,0.0022]
[1756452139122,0.4582697,110550.0,110540.0,0.0032]
[1756452139295,0.4582697,110550.0,110540.0,0.00427]
[1756452140281,0.4582697,110550.0,110540.0,0.18519998]
[1756452140486,0.4583097,110550.0,110540.0,0.18519998]
[1756452140706,0.2795097,110550.0,110540.0,0.18519998]
[1756452140905,0.4582697,110550.0,110540.0,0.18519998]
[1756452142569,0.09327609,110550.0,110540.0,0.18519998]
[1756452142815,4.769e-05,110560.0,110550.0,0.18091361]
[1756452143014,0.17876769,110560.0,110550.0,0.18198361]
[1756452143214,0.19970651,110560.0,110550.0,0.18198361]
[1756452143422,0.02098651,110560.0,110550.0,0.18198361]
[1756452143619,0.19970651,110560.0,110550.0,0.18198361]
[1756452143824,0.02098651,110560.0,110550.0,0.18298361]
[1756452144079,0.19970651,110560.0,110550.0,0.18298361]
[1756452144243,4.769e-05,110560.0,110550.0,0.18298361]
[1756452145451,4.769e-05,110560.0,110550.0,0.18198361]
[1756452145614,0.17872769,110560.0,110550.0,0.18265361]
[1756452145776,0.17872769,110560.0,110550.0,0.18465361]
[1756452145979,0.17872769,110560.0,110550.0,0.18265361]
[1756452146164,4.769e-05,110560.0,110550.0,0.18365361]
[1756452146368,4.769e-05,110560.0,110550.0,0.18765361]
[1756452146630,0.69956367,110570.0,110560.0,0.18089725]
[1756452146631,0.72045972,110570.0,110560.0,0.18089725]
[1756452146925,0.72045972,110570.0,110560.0,0.18244385]
[1756452147686,0.22003157,110590.0,110570.0,0.18088088]
[1756452147882,0.17864,110580.0,110570.0,0.18088088]
[1756452148089,0.17864,110580.0,110570.0,0.18195088]
[1756452148896,0.17864,110580.0,110570.0,0.18262088]
[1756452149102,0.17864,110580.0,110570.0,0.18195088]
[1756452149515,0.17864,110580.0,110570.0,0.18295088]
[1756452149750,0.17864,110580.0,110570.0,0.18395088]
[1756452150104,0.17864,110580.0,110570.0,0.18462088]
[1756452150384,0.18084817,110590.0,110570.0,0.18462088]
[1756452150566,0.38038699,110590.0,110580.0,0.18312533]
[1756452150766,0.38038699,110590.0,110580.0,0.18193453]
[1756452152076,0.38438699,110590.0,110580.0,0.18193453]
[1756452152244,0.36044817,110590.0,110580.0,0.18193453]
[1756452152438,0.35944817,110590.0,110580.0,0.18193453]
[1756452152659,0.1826,110590.0,110580.0,0.18193453]
[1756452154317,0.1826,110590.0,110580.0,1.20372312]
[1756452154679,0.004,110590.0,110580.0,1.20372312]
[1756452155084,0.17848,110600.0,110590.0,0.18084817]
[1756452155312,0.17848,110600.0,110590.0,0.18191817]
[1756452156262,0.00294,110610.0,110600.0,0.18083182]
[1756452156468,0.17844,110610.0,110600.0,0.18190182]
[1756452156893,0.18373913,110620.0,110610.0,0.18081547]
[1756452157097,0.18079913,110620.0,110610.0,0.18188547]
[1756452157303,0.35919913,110620.0,110610.0,0.18188547]
[1756452157487,0.35919913,110620.0,110610.0,0.18202842]
[1756452158366,0.35919913,110620.0,110610.0,0.18102842]
[1756452158912,0.1804,110620.0,110610.0,0.18102842]
[1756452159299,0.1784,110620.0,110610.0,0.18102842]
[1756452159603,0.1814,110620.0,110610.0,0.18102842]
[1756452159949,0.18179913,110620.0,110610.0,0.18102842]
[1756452161999,0.18384913,110620.0,110610.0,0.18102842]
[1756452162177,0.18678913,110620.0,110610.0,0.18102842]
[1756452162544,0.18473913,110620.0,110610.0,0.18102842]
[1756452162750,0.18179913,110620.0,110610.0,0.18102842]
[1756452162958,0.18678913,110620.0,110610.0,0.18102842]
[1756452163687,0.18473913,110620.0,110610.0,0.18102842]
[1756452163924,0.18678913,110620.0,110610.0,0.00014295]
[1756452164595,0.30426639,110620.0,110610.0,0.00014295]
[1756452165000,0.64426639,110620.0,110610.0,0.00014295]
[1756452167164,0.66092876,110620.0,110610.0,0.00014295]
[1756452169309,0.68013868,110620.0,110610.0,0.00014295]
[1756452169770,5.68640511,110620.0,110610.0,0.00014295]
[1756452170901,5.68540511,110620.0,110610.0,0.00014295]
[1756452171279,5.6794298,110620.0,110610.0,0.00014295]
[1756452172225,5.70360954,110620.0,110610.0,0.00014295]
[1756452172421,5.70660954,110620.0,110610.0,0.00014295]
[1756452173281,5.70975954,110620.0,110610.0,0.00014295]
[1756452173684,0.18086453,110580.0,110570.0,0.07363082]
[1756452173896,0.35890453,110580.0,110570.0,0.07573082]
[1756452175492,0.35890453,110580.0,110570.0,0.07773082]
[1756452176343,0.35890453,110580.0,110570.0,0.07973082]
[1756452177266,0.35890453,110580.0,110570.0,0.0091]
[1756452178758,0.36097453,110580.0,110570.0,0.0061]
[1756452179159,0.35890453,110580.0,110570.0,0.0061]
[1756452179359,0.35890453,110580.0,110570.0,0.0091]
[1756452180052,0.18086215,110590.0,110570.0,1.3023268]
[1756452180224,0.35874215,110590.0,110580.0,0.18086453]
[1756452180432,0.35874215,110590.0,110580.0,0.0051]
[1756452180639,0.18086453,110580.0,110570.0,0.09229632]
[1756452180796,0.18086453,110580.0,110570.0,0.005]
[1756452180995,0.18086453,110580.0,110570.0,0.0071]
[1756452181412,0.18086453,110580.0,110570.0,0.0051]
[1756452182035,0.18086453,110580.0,110570.0,0.0061]
[1756452182395,0.18086453,110580.0,110570.0,0.0081]
[1756452182628,0.1778,110580.0,110570.0,1.21303048]
[1756452182834,0.18086215,110590.0,110580.0,0.18086453]
[1756452183221,0.36766036,110600.0,110580.0,1.29604944]
[1756452183435,0.37548996,110600.0,110590.0,0.18310877]
[1756452183639,0.18100221,110600.0,110590.0,0.18594817]
[1756452184421,0.00014344,110600.0,110590.0,0.18594817]
[1756452185400,0.00114344,110600.0,110590.0,0.18594817]
[1756452185575,0.00014344,110600.0,110590.0,0.18594817]
[1756452185981,0.00114344,110600.0,110590.0,0.18594817]
[1756452187031,0.00114344,110600.0,110590.0,0.27424449]
[1756452187195,0.00114344,110600.0,110590.0,0.45188449]
[1756452190267,0.18197526,110600.0,110590.0,0.45188449]
[1756452191491,0.18197526,110600.0,110590.0,0.27087632]
[1756452191945,0.18404526,110600.0,110590.0,0.26787632]
[1756452192193,0.18404526,110600.0,110590.0,0.0021]
[1756452192412,0.18086453,110580.0,110570.0,1.21471351]
[1756452192634,0.18086453,110580.0,110570.0,0.46080124]
[1756452193344,0.18086453,110580.0,110570.0,0.27083632]
[1756452193556,0.18088088,110570.0,110560.0,0.183894]
[1756452193775,0.18088088,110570.0,110560.0,0.27083632]
[1756452193991,0.18088088,110570.0,110560.0,0.09339632]
[1756452194202,0.18088088,110570.0,110560.0,0.27079632]
[1756452194458,0.18088088,110570.0,110560.0,0.26779632]
[1756452194862,0.18088088,110570.0,110560.0,0.27079632]
[1756452195066,0.18295088,110570.0,110560.0,0.27075632]
[1756452195525,0.18088088,110570.0,110560.0,0.45765357]
[1756452195639,0.18295088,110570.0,110560.0,0.45465357]
[1756452195851,0.18088088,110570.0,110560.0,0.45465357]
[1756452196078,0.2038897,110570.0,110560.0,0.006]
[1756452196424,0.59341613,110570.0,110560.0,0.006]
[1756452196631,0.61268661,110570.0,110560.0,0.006]
[1756452197107,0.61268661,110570.0,110560.0,0.003]
[1756452197283,0.61368661,110570.0,110560.0,0.003]
[1756452197859,0.18091361,110550.0,110540.0,0.0002]
[1756452198095,0.35819361,110550.0,110540.0,0.0002]
[1756452198296,0.36331361,110550.0,110540.0,0.0002]
[1756452199097,0.36331361,110550.0,110540.0,0.0006766]
[1756452199737,0.36331361,110550.0,110540.0,0.0026466]
[1756452199941,0.36026361,110550.0,110540.0,0.0036466]
[1756452201115,0.36331361,110550.0,110540.0,0.0016766]
[1756452206441,0.30849538,110550.0,110540.0,0.0016766]
[1756452206827,0.74177147,110550.0,110540.0,0.0016766]
[1756452207800,0.74177147,110550.0,110540.0,0.0006766]
[1756452208501,0.74377147,110550.0,110540.0,0.0006766]
[1756452208907,0.74177147,110550.0,110540.0,0.0006766]
[1756452209165,0.74477147,110550.0,110540.0,0.0006766]
[1756452209341,0.83306779,110550.0,110540.0,0.0006766]
[1756452209558,0.83406779,110550.0,110540.0,0.0006766]
[1756452210164,0.83306779,110550.0,110540.0,0.0006766]
[1756452210388,0.83506779,110550.0,110540.0,0.0006766]
[1756452211219,0.86227879,110550.0,110540.0,0.0006766]
[1756452211915,0.86227879,110550.0,110540.0,1e-08]
[1756452212579,6.07979879,110550.0,110540.0,1e-08]
[1756452212778,6.12108974,110550.0,110540.0,1e-08]
[1756452212979,0.20188516,110530.0,110520.0,1e-08]
[1756452213180,5.5937638,110530.0,110520.0,1e-08]
[1756452213389,5.4220138,110530.0,110520.0,1e-08]
[1756452213636,5.5988538,110530.0,110520.0,1e-08]
[1756452213842,5.52657089,110530.0,110520.0,1e-08]
[1756452214042,5.52857089,110530.0,110520.0,1e-08]
[1756452214720,5.52957089,110530.0,110520.0,1e-08]
[1756452216316,0.52957089,110530.0,110520.0,1e-08]
[1756452217591,0.54871874,110530.0,110520.0,1e-08]
[1756452217795,0.63701544,110530.0,110520.0,1e-08]
[1756452219189,0.63681544,110530.0,110520.0,1e-08]
[1756452219550,0.63376544,110530.0,110520.0,0.00197001]
[1756452219987,0.54851912,110530.0,110520.0,0.00197001]
[1756452220215,0.36678912,110530.0,110520.0,0.00197001]
[1756452220381,0.54338912,110530.0,110520.0,0.00197001]
[1756452220582,0.54340431,110530.0,110520.0,0.00197001]
[1756452220795,0.52424089,110530.0,110520.0,0.00197001]
[1756452220991,0.52424089,110530.0,110520.0,0.00516001]
[1756452220992,0.27448516,110530.0,110520.0,0.00516001]
[1756452221227,0.29366414,110530.0,110520.0,0.00516001]
[1756452221433,0.45108516,110530.0,110520.0,0.00516001]
[1756452221701,0.45108516,110530.0,110520.0,0.00197001]
[1756452221702,0.47026314,110530.0,110520.0,0.00197001]
[1756452222008,0.47230314,110530.0,110520.0,0.00197001]
[1756452222140,0.46095478,110530.0,110520.0,1e-08]
[1756452222349,0.46100478,110530.0,110520.0,1e-08]
[1756452222758,0.46300478,110530.0,110520.0,1e-08]
[1756452222954,0.46200478,110530.0,110520.0,1e-08]
[1756452223192,0.46100478,110530.0,110520.0,1e-08]
[1756452224357,0.46200478,110530.0,110520.0,1e-08]
[1756452225136,0.48694007,110530.0,110520.0,1e-08]
[1756452226123,0.47429961,110530.0,110520.0,0.00197001]
[1756452226334,0.47225961,110530.0,110520.0,0.00197001]
[1756452226656,0.47429961,110530.0,110520.0,0.00197001]
[1756452227921,0.30074961,110530.0,110520.0,0.00197001]
[1756452228117,0.47710961,110530.0,110520.0,0.00197001]
[1756452228320,0.7301313,110530.0,110520.0,1e-08]
[1756452228691,0.76224858,110530.0,110520.0,1e-08]
[1756452229149,0.76124858,110530.0,110520.0,1e-08]
[1756452229282,5.75337193,110530.0,110520.0,1e-08]
[1756452230124,5.75437193,110530.0,110520.0,1e-08]
[1756452233227,6.09437193,110530.0,110520.0,1e-08]
[1756452233844,6.04619601,110530.0,110520.0,1e-08]